[Event "*** SCC Grand Prix: Titled Tuesday Blitz"]
[Site "Chess.com"]
[Date "2020.07.14"]
[Round "5"]
[White "antoszu"]
[Black "BocharovD"]
[Result "1-0"]
[WhiteElo "2544"]
[BlackElo "2770"]
[TimeControl "180+1"]
[EndTime "10:56:42 PDT"]
[Termination "antoszu won by checkmate"]

1. d4 {[%clk 0:03:00.9]} 1... Nf6 {[%clk 0:02:58.9]} 2. c4 {[%clk 0:03:00.8]}
2... e6 {[%clk 0:02:59.2]} 3. Nf3 {[%clk 0:03:00.8]} 3... d5 {[%clk 0:02:57.4]}
4. Nc3 {[%clk 0:03:00.3]} 4... c6 {[%clk 0:02:56.7]} 5. Bg5 {[%clk 0:02:59]}
5... Nbd7 {[%clk 0:02:56.1]} 6. e3 {[%clk 0:02:58.6]} 6... Qa5 {[%clk 0:02:55]}
7. cxd5 {[%clk 0:02:58.5]} 7... Nxd5 {[%clk 0:02:55.3]} 8. Qd2 {[%clk
0:02:56.5]} 8... Bb4 {[%clk 0:02:55]} 9. Rc1 {[%clk 0:02:54.1]} 9... h6 {[%clk
0:02:51.9]} 10. Bh4 {[%clk 0:02:53]} 10... b6 {[%clk 0:02:47.8]} 11. Bd3 {[%clk
0:02:43.7]} 11... Ba6 {[%clk 0:02:43.8]} 12. O-O {[%clk 0:02:42.8]} 12... Nxc3
{[%clk 0:02:42.6]} 13. bxc3 {[%clk 0:02:40.9]} 13... Ba3 {[%clk 0:02:42.1]} 14.
Rb1 {[%clk 0:02:31.8]} 14... O-O {[%clk 0:02:28.8]} 15. e4 {[%clk 0:02:06.6]}
15... Rfe8 {[%clk 0:02:23.6]} 16. Rfd1 {[%clk 0:01:44.8]} 16... Bxd3 {[%clk
0:02:03.2]} 17. Qxd3 {[%clk 0:01:44.9]} 17... Bf8 {[%clk 0:02:02.9]} 18. Bg3
{[%clk 0:01:25.1]} 18... b5 {[%clk 0:01:35.1]} 19. c4 {[%clk 0:01:06]} 19... a6
{[%clk 0:01:21.6]} 20. Qc2 {[%clk 0:00:40.7]} 20... c5 {[%clk 0:00:58.4]} 21. d5
{[%clk 0:00:35.5]} 21... exd5 {[%clk 0:00:56.8]} 22. cxd5 {[%clk 0:00:32.8]}
22... f6 {[%clk 0:00:50.4]} 23. e5 {[%clk 0:00:28.7]} 23... fxe5 {[%clk
0:00:44.9]} 24. Qf5 {[%clk 0:00:26.3]} 24... Qd8 {[%clk 0:00:42.1]} 25. Nxe5
{[%clk 0:00:24.3]} 25... Nxe5 {[%clk 0:00:40.9]} 26. Bxe5 {[%clk 0:00:25.2]}
26... Qc8 {[%clk 0:00:41.1]} 27. Qf4 {[%clk 0:00:23]} 27... Qd7 {[%clk
0:00:39.4]} 28. Rb3 {[%clk 0:00:19.5]} 28... c4 {[%clk 0:00:29.8]} 29. Rg3
{[%clk 0:00:19.4]} 29... Rac8 {[%clk 0:00:29.1]} 30. h3 {[%clk 0:00:16.5]} 30...
Rc5 {[%clk 0:00:27.5]} 31. Qxh6 {[%clk 0:00:09.9]} 31... Rxe5 {[%clk 0:00:23]}
32. Rd4 {[%clk 0:00:05.2]} 32... Rcxd5 {[%clk 0:00:09.2]} 33. Rh4 {[%clk
0:00:05]} 33... Qf5 {[%clk 0:00:08.9]} 34. Qh8+ {[%clk 0:00:04.6]} 34... Kf7
{[%clk 0:00:09.3]} 35. Rf3 {[%clk 0:00:05.1]} 35... Rd1+ {[%clk 0:00:06.3]} 36.
Kh2 {[%clk 0:00:05.3]} 36... Qxf3 {[%clk 0:00:06.7]} 37. gxf3 {[%clk 0:00:06.2]}
37... Ree1 {[%clk 0:00:06.5]} 38. Rf4+ {[%clk 0:00:06.3]} 38... Kg6 {[%clk
0:00:04.3]} 39. Qxf8 {[%clk 0:00:06.5]} 39... Rh1+ {[%clk 0:00:03.8]} 40. Kg3
{[%clk 0:00:07.1]} 40... Rdg1+ {[%clk 0:00:01.9]} 41. Kh4 {[%clk 0:00:07.6]}
41... Kh7 {[%clk 0:00:02.8]} 42. Qf5+ {[%clk 0:00:07.3]} 42... Kh6 {[%clk
0:00:03.1]} 43. Qh5# {[%clk 0:00:07.5]} 1-0

[Event "*** SCC Grand Prix: Titled Tuesday Blitz"]
[Site "Chess.com"]
[Date "2020.07.14"]
[Round "5"]
[White "BilodeauA"]
[Black "FabianoCaruana"]
[Result "0-1"]
[WhiteElo "2820"]
[BlackElo "3024"]
[TimeControl "180+1"]
[EndTime "10:56:43 PDT"]
[Termination "FabianoCaruana won by resignation"]

1. e4 {[%clk 0:03:00.9]} 1... c5 {[%clk 0:02:59.1]} 2. Nf3 {[%clk 0:02:59.1]}
2... e6 {[%clk 0:02:59.6]} 3. d4 {[%clk 0:02:59.2]} 3... cxd4 {[%clk 0:03:00.5]}
4. Nxd4 {[%clk 0:02:59.2]} 4... Nc6 {[%clk 0:03:01.2]} 5. Nc3 {[%clk 0:02:58.3]}
5... Qc7 {[%clk 0:03:01.3]} 6. Be2 {[%clk 0:02:58.4]} 6... Nf6 {[%clk
0:02:59.3]} 7. O-O {[%clk 0:02:58.4]} 7... Be7 {[%clk 0:02:59.9]} 8. f4 {[%clk
0:02:55.2]} 8... d6 {[%clk 0:03:00.2]} 9. Be3 {[%clk 0:02:49.6]} 9... O-O {[%clk
0:03:00.1]} 10. a4 {[%clk 0:02:47.6]} 10... Nxd4 {[%clk 0:02:58.6]} 11. Qxd4
{[%clk 0:02:47.2]} 11... b6 {[%clk 0:02:57.1]} 12. Bf3 {[%clk 0:02:32.4]} 12...
Bb7 {[%clk 0:02:55.4]} 13. Rad1 {[%clk 0:02:23.4]} 13... Rad8 {[%clk 0:02:51]}
14. Qd3 {[%clk 0:01:52.1]} 14... d5 {[%clk 0:02:42.5]} 15. e5 {[%clk 0:01:52.1]}
15... Ne4 {[%clk 0:02:39.5]} 16. Nb5 {[%clk 0:01:51.4]} 16... Qb8 {[%clk
0:02:37.6]} 17. c3 {[%clk 0:01:44.5]} 17... f6 {[%clk 0:02:28.3]} 18. exf6
{[%clk 0:01:37.2]} 18... Bxf6 {[%clk 0:02:22.3]} 19. g3 {[%clk 0:01:29.7]} 19...
Rfe8 {[%clk 0:02:16.8]} 20. Bd4 {[%clk 0:01:25.5]} 20... Bc6 {[%clk 0:01:44.5]}
21. Bxf6 {[%clk 0:01:24.8]} 21... Nxf6 {[%clk 0:01:42.5]} 22. b3 {[%clk
0:01:11.8]} 22... Bxb5 {[%clk 0:01:36.1]} 23. axb5 {[%clk 0:01:12.7]} 23... Qc7
{[%clk 0:01:35.7]} 24. Rfe1 {[%clk 0:01:03.2]} 24... e5 {[%clk 0:01:28.9]} 25.
fxe5 {[%clk 0:01:02.7]} 25... Rxe5 {[%clk 0:01:29.8]} 26. Rxe5 {[%clk
0:01:02.4]} 26... Qxe5 {[%clk 0:01:30.7]} 27. Qd4 {[%clk 0:01:00]} 27... Qf5
{[%clk 0:01:26.7]} 28. Qd3 {[%clk 0:00:51]} 28... Qg5 {[%clk 0:01:20.7]} 29. c4
{[%clk 0:00:45.9]} 29... d4 {[%clk 0:01:15.5]} 30. Bd5+ {[%clk 0:00:46.1]} 30...
Kh8 {[%clk 0:01:07.6]} 31. Qxd4 {[%clk 0:00:44]} 31... h5 {[%clk 0:00:58.9]} 32.
Qf4 {[%clk 0:00:34.6]} 32... Qg6 {[%clk 0:00:58.4]} 33. Qc7 {[%clk 0:00:26.8]}
33... Qe8 {[%clk 0:00:48.1]} 34. Qf4 {[%clk 0:00:19.6]} 34... Qe2 {[%clk
0:00:47.8]} 35. Rd2 {[%clk 0:00:17.7]} 35... Qe1+ {[%clk 0:00:47.1]} 36. Kg2
{[%clk 0:00:18.3]} 36... Ng4 {[%clk 0:00:42.3]} 37. Kh3 {[%clk 0:00:11.2]} 37...
Nf6 {[%clk 0:00:36.9]} 38. Qf2 {[%clk 0:00:07.5]} 38... Qe5 {[%clk 0:00:31]} 39.
Bf3 {[%clk 0:00:06]} 39... Rf8 {[%clk 0:00:28.7]} 40. Re2 {[%clk 0:00:05.5]}
40... Qg5 {[%clk 0:00:24.6]} 41. Qe3 {[%clk 0:00:04.7]} 41... Qf5+ {[%clk
0:00:24.9]} 42. Kg2 {[%clk 0:00:05.2]} 42... Ng4 {[%clk 0:00:25.4]} 43. Qe4
{[%clk 0:00:03.6]} 43... Qf7 {[%clk 0:00:23.8]} 44. h3 {[%clk 0:00:03.9]} 44...
Nf6 {[%clk 0:00:23.2]} 45. Qf5 {[%clk 0:00:03.9]} 45... Qc7 {[%clk 0:00:17.5]}
46. g4 {[%clk 0:00:04]} 46... h4 {[%clk 0:00:16.9]} 47. g5 {[%clk 0:00:04]}
47... Qg3+ {[%clk 0:00:17.4]} 48. Kh1 {[%clk 0:00:02.6]} 48... Nh7 {[%clk
0:00:18.2]} 49. Bh5 {[%clk 0:00:01.1]} 49... Rxf5 {[%clk 0:00:17.4]} 0-1

[Event "*** SCC Grand Prix: Titled Tuesday Blitz"]
[Site "Chess.com"]
[Date "2020.07.14"]
[Round "5"]
[White "dennisodessa"]
[Black "SuperMagnum"]
[Result "1-0"]
[WhiteElo "2451"]
[BlackElo "2169"]
[TimeControl "180+1"]
[EndTime "10:56:43 PDT"]
[Termination "dennisodessa won on time"]

1. d4 {[%clk 0:03:00]} 1... g6 {[%clk 0:02:59.9]} 2. c4 {[%clk 0:02:59.2]} 2...
Bg7 {[%clk 0:03:00]} 3. Nc3 {[%clk 0:02:58]} 3... d6 {[%clk 0:03:00.9]} 4. e4
{[%clk 0:02:57.4]} 4... Nf6 {[%clk 0:02:56.9]} 5. f3 {[%clk 0:02:46.8]} 5... O-O
{[%clk 0:02:55.2]} 6. Be3 {[%clk 0:02:46.6]} 6... Nbd7 {[%clk 0:02:54.3]} 7. Bd3
{[%clk 0:02:46]} 7... e5 {[%clk 0:02:46.9]} 8. d5 {[%clk 0:02:31.7]} 8... c6
{[%clk 0:02:44.5]} 9. Nge2 {[%clk 0:02:29.2]} 9... cxd5 {[%clk 0:02:39.5]} 10.
cxd5 {[%clk 0:02:30.1]} 10... a6 {[%clk 0:02:38.9]} 11. Qd2 {[%clk 0:02:22.3]}
11... b5 {[%clk 0:02:37.7]} 12. b4 {[%clk 0:02:15]} 12... Bb7 {[%clk 0:02:34.7]}
13. a4 {[%clk 0:02:12.9]} 13... bxa4 {[%clk 0:02:32]} 14. Nxa4 {[%clk
0:02:13.8]} 14... Rc8 {[%clk 0:02:28.3]} 15. O-O {[%clk 0:02:06]} 15... Ne8
{[%clk 0:02:25.2]} 16. Rfc1 {[%clk 0:01:53.3]} 16... f5 {[%clk 0:02:21.9]} 17.
Rxc8 {[%clk 0:01:48.1]} 17... Bxc8 {[%clk 0:02:19]} 18. Nb2 {[%clk 0:01:33.4]}
18... fxe4 {[%clk 0:02:14.9]} 19. fxe4 {[%clk 0:01:29.2]} 19... Ndf6 {[%clk
0:02:11.2]} 20. Bxa6 {[%clk 0:01:25]} 20... Bxa6 {[%clk 0:02:01.9]} 21. Rxa6
{[%clk 0:01:25.9]} 21... Nxe4 {[%clk 0:02:02.1]} 22. Qd3 {[%clk 0:01:24.1]}
22... Qf6 {[%clk 0:01:55.4]} 23. Ra1 {[%clk 0:00:57.8]} 23... Nf2 {[%clk
0:01:45.9]} 24. Qd2 {[%clk 0:00:33.9]} 24... Ng4 {[%clk 0:01:41.9]} 25. Bb6
{[%clk 0:00:28.9]} 25... Qh4 {[%clk 0:01:22.5]} 26. h3 {[%clk 0:00:28.5]} 26...
Nf2 {[%clk 0:01:13.3]} 27. Nc3 {[%clk 0:00:21.3]} 27... Ne4 {[%clk 0:00:47.4]}
28. Nxe4 {[%clk 0:00:15.4]} 28... Qxe4 {[%clk 0:00:46]} 29. Re1 {[%clk
0:00:16.3]} 29... Qh4 {[%clk 0:00:41.3]} 30. Bf2 {[%clk 0:00:14.3]} 30... Qd8
{[%clk 0:00:32.4]} 31. b5 {[%clk 0:00:13.8]} 31... Nf6 {[%clk 0:00:30.7]} 32. b6
{[%clk 0:00:13.6]} 32... Nh5 {[%clk 0:00:28.9]} 33. Nc4 {[%clk 0:00:10.2]} 33...
Nf4 {[%clk 0:00:27.3]} 34. Be3 {[%clk 0:00:09.7]} 34... Bh6 {[%clk 0:00:20.8]}
35. Rb1 {[%clk 0:00:07.4]} 35... Qg5 {[%clk 0:00:05]} 36. Bxf4 {[%clk
0:00:07.1]} 36... Qxf4 {[%clk 0:00:03.4]} 37. Qxf4 {[%clk 0:00:07]} 37... Bxf4
{[%clk 0:00:03.8]} 38. b7 {[%clk 0:00:07.9]} 38... Rb8 {[%clk 0:00:04]} 39. Na5
{[%clk 0:00:08]} 39... Be3+ {[%clk 0:00:03.8]} 40. Kh1 {[%clk 0:00:08.1]} 40...
Bc5 {[%clk 0:00:02]} 41. Nc6 {[%clk 0:00:08.2]} 1-0

[Event "*** SCC Grand Prix: Titled Tuesday Blitz"]
[Site "Chess.com"]
[Date "2020.07.14"]
[Round "5"]
[White "Stosk"]
[Black "ClassyEl"]
[Result "0-1"]
[WhiteElo "2334"]
[BlackElo "2534"]
[TimeControl "180+1"]
[EndTime "10:56:45 PDT"]
[Termination "ClassyEl won on time"]

1. e4 {[%clk 0:03:00.9]} 1... d6 {[%clk 0:02:58.1]} 2. d4 {[%clk 0:03:00.3]}
2... Nf6 {[%clk 0:02:58.1]} 3. Nc3 {[%clk 0:03:00.4]} 3... c6 {[%clk 0:02:58.8]}
4. Bg5 {[%clk 0:02:58.6]} 4... b5 {[%clk 0:02:55.7]} 5. a3 {[%clk 0:02:58.1]}
5... Nbd7 {[%clk 0:02:54.1]} 6. f4 {[%clk 0:02:57.8]} 6... h6 {[%clk 0:02:40.4]}
7. Bh4 {[%clk 0:02:57]} 7... e5 {[%clk 0:02:40]} 8. fxe5 {[%clk 0:02:54.1]} 8...
dxe5 {[%clk 0:02:40.2]} 9. dxe5 {[%clk 0:02:54]} 9... g5 {[%clk 0:02:40.1]} 10.
Bg3 {[%clk 0:02:41.1]} 10... Ng8 {[%clk 0:02:40]} 11. e6 {[%clk 0:02:31.6]}
11... fxe6 {[%clk 0:02:40]} 12. Qh5+ {[%clk 0:02:31.1]} 12... Ke7 {[%clk
0:02:40.5]} 13. O-O-O {[%clk 0:02:19.6]} 13... Qe8 {[%clk 0:02:27]} 14. Bd6+
{[%clk 0:02:17.3]} 14... Kd8 {[%clk 0:02:26.5]} 15. Bc7+ {[%clk 0:02:10.7]}
15... Ke7 {[%clk 0:02:26.6]} 16. Qf3 {[%clk 0:02:11]} 16... Ngf6 {[%clk
0:02:18.5]} 17. Bxb5 {[%clk 0:01:46.8]} 17... g4 {[%clk 0:02:01.7]} 18. Qf4
{[%clk 0:01:42.1]} 18... cxb5 {[%clk 0:01:50.1]} 19. e5 {[%clk 0:01:35.2]} 19...
h5 {[%clk 0:01:38.7]} 20. exf6+ {[%clk 0:01:30.2]} 20... Nxf6 {[%clk 0:01:38.4]}
21. Qe5 {[%clk 0:01:22.3]} 21... Bb7 {[%clk 0:01:16.7]} 22. Bd6+ {[%clk
0:01:10.5]} 22... Kf7 {[%clk 0:01:16.7]} 23. Rf1 {[%clk 0:01:08.8]} 23... Bg7
{[%clk 0:01:11]} 24. Nge2 {[%clk 0:01:01.8]} 24... Bxg2 {[%clk 0:01:07.7]} 25.
Ne4 {[%clk 0:01:01.6]} 25... Bxe4 {[%clk 0:01:02]} 26. Qxe4 {[%clk 0:01:01.1]}
26... Rc8 {[%clk 0:00:59.8]} 27. Be5 {[%clk 0:00:58.1]} 27... Qc6 {[%clk
0:00:59.9]} 28. Nc3 {[%clk 0:00:45.6]} 28... Rh6 {[%clk 0:00:51.2]} 29. Qd4
{[%clk 0:00:41.2]} 29... a6 {[%clk 0:00:44.3]} 30. Kb1 {[%clk 0:00:36.5]} 30...
a5 {[%clk 0:00:39.3]} 31. Qa7+ {[%clk 0:00:34.1]} 31... Kg8 {[%clk 0:00:38.2]}
32. Qxa5 {[%clk 0:00:33.9]} 32... Ne4 {[%clk 0:00:33.4]} 33. Bxg7 {[%clk
0:00:26.3]} 33... Kxg7 {[%clk 0:00:33.4]} 34. Qa7+ {[%clk 0:00:19.3]} 34... Kg8
{[%clk 0:00:29.9]} 35. Qf7+ {[%clk 0:00:18.8]} 35... Kh8 {[%clk 0:00:30.2]} 36.
Nxe4 {[%clk 0:00:08.7]} 36... Qxc2+ {[%clk 0:00:30]} 37. Ka1 {[%clk 0:00:09.2]}
37... Qxe4 {[%clk 0:00:30.2]} 38. Re1 {[%clk 0:00:07.1]} 38... Qf5 {[%clk
0:00:29.7]} 39. Qd7 {[%clk 0:00:04.8]} 39... Rf8 {[%clk 0:00:25.2]} 40. Qd6
{[%clk 0:00:01.9]} 40... Rh7 {[%clk 0:00:23]} 41. Qd4+ {[%clk 0:00:02]} 41...
Kg8 {[%clk 0:00:22.2]} 42. Qc3 {[%clk 0:00:02.2]} 42... Rhf7 {[%clk 0:00:20.6]}
43. Qb3 {[%clk 0:00:02.2]} 43... Qd5 {[%clk 0:00:20.4]} 44. Qc3 {[%clk
0:00:01.5]} 44... Rf2 {[%clk 0:00:20]} 45. Qc2 {[%clk 0:00:02]} 45... Rxc2
{[%clk 0:00:20.1]} 0-1

[Event "*** SCC Grand Prix: Titled Tuesday Blitz"]
[Site "Chess.com"]
[Date "2020.07.14"]
[Round "5"]
[White "LyonBeast"]
[Black "theblitzchamp"]
[Result "1-0"]
[WhiteElo "3022"]
[BlackElo "2643"]
[TimeControl "180+1"]
[EndTime "10:56:46 PDT"]
[Termination "LyonBeast won by checkmate"]

1. Nf3 {[%clk 0:03:00.9]} 1... Nf6 {[%clk 0:02:57.1]} 2. g3 {[%clk 0:03:00.1]}
2... d5 {[%clk 0:02:57.3]} 3. Bg2 {[%clk 0:03:00.1]} 3... c6 {[%clk 0:02:57.8]}
4. O-O {[%clk 0:02:59.9]} 4... e6 {[%clk 0:02:55]} 5. b3 {[%clk 0:02:58.6]} 5...
Bd6 {[%clk 0:02:54.3]} 6. Bb2 {[%clk 0:02:58.4]} 6... Nbd7 {[%clk 0:02:54.4]} 7.
d3 {[%clk 0:02:53.5]} 7... O-O {[%clk 0:02:53.5]} 8. Nbd2 {[%clk 0:02:52.7]}
8... e5 {[%clk 0:02:49.1]} 9. e4 {[%clk 0:02:52.5]} 9... Qe7 {[%clk 0:02:47.6]}
10. exd5 {[%clk 0:02:50.5]} 10... cxd5 {[%clk 0:02:22.3]} 11. Re1 {[%clk
0:02:50.2]} 11... Bc7 {[%clk 0:01:36.3]} 12. c4 {[%clk 0:02:44.8]} 12... Re8
{[%clk 0:01:06.3]} 13. cxd5 {[%clk 0:02:41.8]} 13... Nxd5 {[%clk 0:01:07.2]} 14.
Rc1 {[%clk 0:02:39.7]} 14... Qd8 {[%clk 0:01:03.2]} 15. d4 {[%clk 0:02:39.6]}
15... exd4 {[%clk 0:00:51.2]} 16. Rxe8+ {[%clk 0:02:39.1]} 16... Qxe8 {[%clk
0:00:52.1]} 17. Nxd4 {[%clk 0:02:39.5]} 17... N7f6 {[%clk 0:00:49.8]} 18. h3
{[%clk 0:02:33.7]} 18... Bb6 {[%clk 0:00:48.9]} 19. Nc4 {[%clk 0:02:33.4]} 19...
Bc7 {[%clk 0:00:34.3]} 20. Qd2 {[%clk 0:02:28.5]} 20... Bd7 {[%clk 0:00:29.7]}
21. Re1 {[%clk 0:02:27.7]} 21... Qf8 {[%clk 0:00:29.6]} 22. Ba3 {[%clk
0:02:25.9]} 22... Qc8 {[%clk 0:00:25.8]} 23. Kh2 {[%clk 0:02:20.3]} 23... b5
{[%clk 0:00:20.4]} 24. Nd6 {[%clk 0:02:19.7]} 24... Bxd6 {[%clk 0:00:19.8]} 25.
Bxd6 {[%clk 0:02:20.6]} 25... Qa6 {[%clk 0:00:16.3]} 26. Be5 {[%clk 0:02:17.1]}
26... Re8 {[%clk 0:00:13.5]} 27. f4 {[%clk 0:02:14.8]} 27... h6 {[%clk
0:00:13.3]} 28. Rc1 {[%clk 0:02:13.6]} 28... b4 {[%clk 0:00:13.3]} 29. Bxf6
{[%clk 0:02:01.1]} 29... Nxf6 {[%clk 0:00:13.3]} 30. Qxb4 {[%clk 0:02:01.2]}
30... Qxa2 {[%clk 0:00:13.3]} 31. Rc2 {[%clk 0:01:56.5]} 31... Qa1 {[%clk
0:00:13.7]} 32. Qc3 {[%clk 0:01:56.5]} 32... Qb1 {[%clk 0:00:12.7]} 33. Rc1
{[%clk 0:01:53.4]} 33... Qa2 {[%clk 0:00:12.8]} 34. Qc2 {[%clk 0:01:42.6]} 34...
Qa5 {[%clk 0:00:12.4]} 35. Nf3 {[%clk 0:01:40.7]} 35... Qh5 {[%clk 0:00:12]} 36.
Qc5 {[%clk 0:01:36.5]} 36... Qxc5 {[%clk 0:00:06.1]} 37. Rxc5 {[%clk 0:01:37.4]}
37... Re2 {[%clk 0:00:06.5]} 38. Kg1 {[%clk 0:01:35.5]} 38... Rb2 {[%clk
0:00:06.6]} 39. Nd4 {[%clk 0:01:33.7]} 39... Rd2 {[%clk 0:00:06.8]} 40. Rc4
{[%clk 0:01:28.5]} 40... Rd3 {[%clk 0:00:06.9]} 41. g4 {[%clk 0:01:27]} 41... a5
{[%clk 0:00:06.5]} 42. Bf1 {[%clk 0:01:24.8]} 42... Rd1 {[%clk 0:00:05.7]} 43.
Kg2 {[%clk 0:01:19.6]} 43... Nd5 {[%clk 0:00:06]} 44. Kf2 {[%clk 0:01:09.7]}
44... Nxf4 {[%clk 0:00:06.3]} 45. Nf3 {[%clk 0:01:04.2]} 45... Rb1 {[%clk
0:00:06.3]} 46. Rxf4 {[%clk 0:01:02.8]} 46... Rxb3 {[%clk 0:00:06.2]} 47. Bc4
{[%clk 0:01:02.8]} 47... Rb2+ {[%clk 0:00:05.9]} 48. Kg3 {[%clk 0:01:03.2]}
48... Be8 {[%clk 0:00:06.3]} 49. Ne5 {[%clk 0:01:03.4]} 49... a4 {[%clk
0:00:06.5]} 50. Nxf7 {[%clk 0:01:02.6]} 50... Kh7 {[%clk 0:00:04.2]} 51. Nd6
{[%clk 0:01:00.8]} 51... Bc6 {[%clk 0:00:04]} 52. Bd3+ {[%clk 0:00:58.5]} 52...
Kg8 {[%clk 0:00:04.5]} 53. Rc4 {[%clk 0:00:58.4]} 53... Bd7 {[%clk 0:00:03.3]}
54. Rc3 {[%clk 0:00:56.1]} 54... Be6 {[%clk 0:00:02.4]} 55. Kf4 {[%clk
0:00:54.8]} 55... Rb4+ {[%clk 0:00:01.9]} 56. Ke5 {[%clk 0:00:54.7]} 56... Bd7
{[%clk 0:00:02.6]} 57. Bc4+ {[%clk 0:00:53.9]} 57... Kh7 {[%clk 0:00:02.3]} 58.
Kd4 {[%clk 0:00:51.9]} 58... Rb6 {[%clk 0:00:02.6]} 59. Kc5 {[%clk 0:00:51.6]}
59... Rc6+ {[%clk 0:00:03.1]} 60. Kd5 {[%clk 0:00:52.1]} 60... Rb6 {[%clk
0:00:03.3]} 61. Bd3+ {[%clk 0:00:51.8]} 61... Kg8 {[%clk 0:00:02.8]} 62. Rc7
{[%clk 0:00:52.4]} 62... Be8 {[%clk 0:00:01.3]} 63. Rc8 {[%clk 0:00:51.2]} 63...
a3 {[%clk 0:00:02.2]} 64. Rxe8# {[%clk 0:00:50.9]} 1-0

[Event "*** SCC Grand Prix: Titled Tuesday Blitz"]
[Site "Chess.com"]
[Date "2020.07.14"]
[Round "5"]
[White "WPWPWP-2015"]
[Black "chessdjw"]
[Result "0-1"]
[WhiteElo "2425"]
[BlackElo "2659"]
[TimeControl "180+1"]
[EndTime "10:56:46 PDT"]
[Termination "chessdjw won on time"]

1. e4 {[%clk 0:02:47.7]} 1... e5 {[%clk 0:02:52.9]} 2. Nf3 {[%clk 0:02:38.3]}
2... Nc6 {[%clk 0:02:53.3]} 3. Bb5 {[%clk 0:02:35.1]} 3... a6 {[%clk 0:02:53.4]}
4. Ba4 {[%clk 0:02:35]} 4... Nf6 {[%clk 0:02:53.6]} 5. O-O {[%clk 0:02:34.9]}
5... Nxe4 {[%clk 0:02:54.2]} 6. d4 {[%clk 0:02:31]} 6... b5 {[%clk 0:02:53.9]}
7. Bb3 {[%clk 0:02:31.3]} 7... d5 {[%clk 0:02:54.6]} 8. dxe5 {[%clk 0:02:31.5]}
8... Be6 {[%clk 0:02:55.3]} 9. Be3 {[%clk 0:02:29.4]} 9... Be7 {[%clk 0:02:51]}
10. Nbd2 {[%clk 0:02:28.8]} 10... O-O {[%clk 0:02:48.9]} 11. c3 {[%clk
0:02:05.1]} 11... Bf5 {[%clk 0:02:42.8]} 12. Qe2 {[%clk 0:01:57.2]} 12... Nc5
{[%clk 0:02:39.2]} 13. Bxc5 {[%clk 0:01:50.3]} 13... Bxc5 {[%clk 0:02:40.1]} 14.
Rfd1 {[%clk 0:01:46.8]} 14... Re8 {[%clk 0:02:16.4]} 15. a4 {[%clk 0:01:40.5]}
15... b4 {[%clk 0:02:01.4]} 16. h3 {[%clk 0:01:32.6]} 16... bxc3 {[%clk
0:01:52.9]} 17. bxc3 {[%clk 0:01:31.7]} 17... Na5 {[%clk 0:01:42.8]} 18. Ba2
{[%clk 0:01:31.2]} 18... Bg6 {[%clk 0:01:30.3]} 19. Nf1 {[%clk 0:01:22.2]} 19...
c6 {[%clk 0:01:29.2]} 20. Nd4 {[%clk 0:01:15.3]} 20... Qg5 {[%clk 0:01:13.4]}
21. Re1 {[%clk 0:01:00.8]} 21... Be4 {[%clk 0:00:59.3]} 22. f3 {[%clk
0:00:58.4]} 22... Bg6 {[%clk 0:00:51.4]} 23. g3 {[%clk 0:00:52.6]} 23... Ba7
{[%clk 0:00:39]} 24. Kh2 {[%clk 0:00:49.1]} 24... c5 {[%clk 0:00:23.6]} 25. f4
{[%clk 0:00:44.4]} 25... Qd8 {[%clk 0:00:23.3]} 26. Nf3 {[%clk 0:00:39.3]} 26...
c4 {[%clk 0:00:22.8]} 27. Rad1 {[%clk 0:00:35.9]} 27... Bd3 {[%clk 0:00:22.3]}
28. Qg2 {[%clk 0:00:32.7]} 28... Rb8 {[%clk 0:00:22.6]} 29. Ne3 {[%clk
0:00:26.3]} 29... Qd7 {[%clk 0:00:22.7]} 30. Bb1 {[%clk 0:00:20.7]} 30... Bxb1
{[%clk 0:00:21]} 31. Nxd5 {[%clk 0:00:19.3]} 31... Bd3 {[%clk 0:00:18.3]} 32.
Nb4 {[%clk 0:00:18.9]} 32... Nb3 {[%clk 0:00:13.3]} 33. Qa2 {[%clk 0:00:12.2]}
33... Nc5 {[%clk 0:00:12.7]} 34. Nd4 {[%clk 0:00:10.9]} 34... Rxb4 {[%clk
0:00:07.9]} 35. cxb4 {[%clk 0:00:10]} 35... Qxd4 {[%clk 0:00:08.4]} 36. bxc5
{[%clk 0:00:09.3]} 36... Bxc5 {[%clk 0:00:09.1]} 37. Qg2 {[%clk 0:00:06.3]}
37... h5 {[%clk 0:00:09]} 38. h4 {[%clk 0:00:05.5]} 38... Rb8 {[%clk 0:00:09.5]}
39. f5 {[%clk 0:00:04.5]} 39... Rb2 {[%clk 0:00:08.6]} 40. Rd2 {[%clk
0:00:04.4]} 40... Rxd2 {[%clk 0:00:08.6]} 41. Qxd2 {[%clk 0:00:04.6]} 41... c3
{[%clk 0:00:09.2]} 42. Qd1 {[%clk 0:00:03.2]} 42... Bxf5 {[%clk 0:00:08.9]} 43.
Qxd4 {[%clk 0:00:02.7]} 43... Bxd4 {[%clk 0:00:09.8]} 44. Rd1 {[%clk 0:00:02.9]}
44... c2 {[%clk 0:00:10.1]} 45. Rc1 {[%clk 0:00:03.3]} 45... Be3 {[%clk
0:00:10.3]} 0-1